[Event "December 12 Late 2023"]
[Site "https://www.chess.com"]
[Date "2023.12.12"]
[Round "6"]
[White "Rodgers, Jack"]
[Black "Zeneli, Klendi"]
[Result "1-0"]
[Board "86"]
[TimeControl "180+1"]
[WhiteFideId "3220885"]
[BlackFideId "4706609"]
[WhiteElo "2520"]
[BlackElo "2403"]
[WhiteTeam "AUS"]
[BlackTeam "ALB"]
[WhiteClock "0:00:15"]
[BlackClock "0:00:09"]

1. d4 {[%clk 0:03:00]}  d5 {[%clk 0:02:59]} 2. Bg5 {[%clk 0:02:59]}  f6 {[%clk 0:02:58]} 3. Bh4 {[%clk 0:02:58]}  Nh6 {[%clk 0:02:54]} 4. f3 {[%clk 0:02:57]}  e5 {[%clk 0:02:50]} 5. dxe5 {[%clk 0:02:48]}  Nf5 {[%clk 0:02:50]} 6. Bf2 {[%clk 0:02:47]}  fxe5 {[%clk 0:02:49]} 7. e4 {[%clk 0:02:46]}  dxe4 {[%clk 0:02:46]} 8. Qxd8+ {[%clk 0:02:45]}  Kxd8 {[%clk 0:02:47]} 9. fxe4 {[%clk 0:02:31]}  Nd4 {[%clk 0:02:43]} 10. Bxd4 {[%clk 0:02:26]}  exd4 {[%clk 0:02:44]} 11. Nf3 {[%clk 0:02:27]}  Nc6 {[%clk 0:02:41]} 12. Nbd2 {[%clk 0:02:23]}  Bb4 {[%clk 0:02:39]} 13. O-O-O {[%clk 0:02:23]}  Ke7 {[%clk 0:02:35]} 14. Nb3 {[%clk 0:02:23]}  Bg4 {[%clk 0:02:27]} 15. Nbxd4 {[%clk 0:02:19]}  Nxd4 {[%clk 0:02:19]} 16. Rxd4 {[%clk 0:02:14]}  Bc5 {[%clk 0:02:19]} 17. Rd1 {[%clk 0:02:03]}  Rhf8 {[%clk 0:02:13]} 18. Be2 {[%clk 0:02:02]}  Rf4 {[%clk 0:02:12]} 19. e5 {[%clk 0:01:40]}  Re4 {[%clk 0:02:00]} 20. Bd3 {[%clk 0:01:40]}  Re3 {[%clk 0:01:58]} 21. Bxh7 {[%clk 0:01:33]}  Re2 {[%clk 0:01:50]} 22. h3 {[%clk 0:01:22]}  Be6 {[%clk 0:01:34]} 23. g4 {[%clk 0:00:48]}  Bxa2 {[%clk 0:01:33]} 24. Nd4 {[%clk 0:00:47]}  Bxd4 {[%clk 0:01:22]} 25. Rxd4 {[%clk 0:00:47]}  Be6 {[%clk 0:01:19]} 26. Re4 {[%clk 0:00:31]}  Rg2 {[%clk 0:01:13]} 27. Re3 {[%clk 0:00:23]}  Rf8 {[%clk 0:01:09]} 28. Bd3 {[%clk 0:00:18]}  Rff2 {[%clk 0:00:58]} 29. b3 {[%clk 0:00:14]}  a5 {[%clk 0:00:54]} 30. Kb2 {[%clk 0:00:14]}  b5 {[%clk 0:00:49]} 31. Rc1 {[%clk 0:00:11]}  a4 {[%clk 0:00:47]} 32. bxa4 {[%clk 0:00:11]}  bxa4 {[%clk 0:00:46]} 33. Bb5 {[%clk 0:00:11]}  Bb3 {[%clk 0:00:34]} 34. Rc3 {[%clk 0:00:08]}  Kd8 {[%clk 0:00:15]} 35. e6 {[%clk 0:00:06]}  Bxe6 {[%clk 0:00:13]} 36. Bxa4 {[%clk 0:00:07]}  Rh2 {[%clk 0:00:12]} 37. Rd1+ {[%clk 0:00:07]}  Kc8 {[%clk 0:00:11]} 38. Re1 {[%clk 0:00:06]}  Re2 {[%clk 0:00:08]} 39. Rxe2 {[%clk 0:00:05]}  Rxe2 {[%clk 0:00:09]} 40. Bb3 {[%clk 0:00:04]}  Bd7 {[%clk 0:00:08]} 41. Bc4 {[%clk 0:00:02]}  Rh2 {[%clk 0:00:07]} 42. Ba6+ {[%clk 0:00:03]}  Kb8 {[%clk 0:00:07]} 43. Rb3+ {[%clk 0:00:03]}  Ka7 {[%clk 0:00:06]} 44. Bc4 {[%clk 0:00:04]}  Bc6 {[%clk 0:00:04]} 45. Rc3 {[%clk 0:00:04]}  Be4 {[%clk 0:00:03]} 46. Be6 {[%clk 0:00:03]}  Kb6 {[%clk 0:00:02]} 47. g5 {[%clk 0:00:04]}  c5 {[%clk 0:00:02]} 48. Bg4 {[%clk 0:00:04]}  Rg2 {[%clk 0:00:03]} 49. Kb3 {[%clk 0:00:03]}  Rg1 {[%clk 0:00:04]} 50. Kb2 {[%clk 0:00:03]}  c4 {[%clk 0:00:04]} 51. Rxc4 {[%clk 0:00:02]}  Bd5 {[%clk 0:00:04]} 52. Rc3 {[%clk 0:00:03]}  Rg3 {[%clk 0:00:04]} 53. Rxg3 {[%clk 0:00:02]}  Kc5 {[%clk 0:00:05]} 54. Kc3 {[%clk 0:00:02]}  Bc4 {[%clk 0:00:06]} 55. Kd2 {[%clk 0:00:03]}  Bd5 {[%clk 0:00:06]} 56. Ke3 {[%clk 0:00:04]}  Kc4 {[%clk 0:00:06]} 57. Kf4 {[%clk 0:00:05]}  g6 {[%clk 0:00:05]} 58. h4 {[%clk 0:00:06]}  Bf7 {[%clk 0:00:03]} 59. Ke5 {[%clk 0:00:05]}  Kc5 {[%clk 0:00:03]} 60. Kf6 {[%clk 0:00:06]}  Be8 {[%clk 0:00:03]} 61. Kg7 {[%clk 0:00:07]}  Kd6 {[%clk 0:00:03]} 62. Kh6 {[%clk 0:00:08]}  Ke5 {[%clk 0:00:03]} 63. h5 {[%clk 0:00:09]}  gxh5 {[%clk 0:00:04]} 64. Bxh5 {[%clk 0:00:09]}  Bd7 {[%clk 0:00:05]} 65. g6 {[%clk 0:00:09]}  Be6 {[%clk 0:00:05]} 66. Rg1 {[%clk 0:00:10]}  Bg8 {[%clk 0:00:06]} 67. g7 {[%clk 0:00:11]}  Kd4 {[%clk 0:00:07]} 68. Bg6 {[%clk 0:00:11]}  Kc3 {[%clk 0:00:08]} 69. Bh7 {[%clk 0:00:12]}  Bd5 {[%clk 0:00:08]} 70. g8=Q {[%clk 0:00:13]}  Bxg8 {[%clk 0:00:09]} 71. Bxg8 {[%clk 0:00:14]}  Kxc2 {[%clk 0:00:10]} 72. Bh7+ {[%clk 0:00:14]}  Kd2 {[%clk 0:00:10]} 73. Rg5 {[%clk 0:00:14]}  Ke3 {[%clk 0:00:09]} 74. Kg6 {[%clk 0:00:15]} 1-0

[Event "December 12 Late 2023"]
[Site "https://www.chess.com"]
[Date "2023.12.12"]
[Round "6"]
[White "Karas, Marek"]
[Black "Haszon, David"]
[Result "1-0"]
[Board "89"]
[TimeControl "180+1"]
[WhiteFideId "14928558"]
[BlackFideId "733610"]
[WhiteElo "2516"]
[BlackElo "2390"]
[WhiteTeam "CZE"]
[BlackTeam "HUN"]
[WhiteClock "0:01:08"]
[BlackClock "0:00:33"]

1. e4 {[%clk 0:03:00]}  e5 {[%clk 0:03:00]} 2. Nf3 {[%clk 0:02:58]}  Nf6 {[%clk 0:03:00]} 3. Nc3 {[%clk 0:02:58]}  Nc6 {[%clk 0:03:00]} 4. d4 {[%clk 0:02:57]}  exd4 {[%clk 0:03:00]} 5. Nxd4 {[%clk 0:02:57]}  Bb4 {[%clk 0:03:00]} 6. Nxc6 {[%clk 0:02:57]}  bxc6 {[%clk 0:03:01]} 7. Bd3 {[%clk 0:02:57]}  d5 {[%clk 0:03:02]} 8. exd5 {[%clk 0:02:57]}  cxd5 {[%clk 0:03:03]} 9. O-O {[%clk 0:02:57]}  O-O {[%clk 0:03:03]} 10. Bg5 {[%clk 0:02:56]}  c6 {[%clk 0:03:04]} 11. h3 {[%clk 0:02:54]}  h6 {[%clk 0:03:04]} 12. Bh4 {[%clk 0:02:52]}  Re8 {[%clk 0:03:04]} 13. Qf3 {[%clk 0:02:50]}  Bd6 {[%clk 0:03:04]} 14. Rfe1 {[%clk 0:02:47]}  Be6 {[%clk 0:03:04]} 15. Ne2 {[%clk 0:02:41]}  Rb8 {[%clk 0:03:04]} 16. b3 {[%clk 0:02:40]}  Rb4 {[%clk 0:03:04]} 17. Bg3 {[%clk 0:02:36]}  Bxg3 {[%clk 0:02:32]} 18. Nxg3 {[%clk 0:02:37]}  Qd6 {[%clk 0:02:12]} 19. Rad1 {[%clk 0:02:33]}  Qf4 {[%clk 0:02:03]} 20. Qxf4 {[%clk 0:02:31]}  Rxf4 {[%clk 0:02:04]} 21. Ne2 {[%clk 0:02:23]}  Rb4 {[%clk 0:02:03]} 22. c3 {[%clk 0:02:21]}  Rb7 {[%clk 0:02:02]} 23. Nd4 {[%clk 0:02:20]}  c5 {[%clk 0:01:59]} 24. Nf5 {[%clk 0:02:18]}  Bxf5 {[%clk 0:01:52]} 25. Rxe8+ {[%clk 0:02:16]}  Nxe8 {[%clk 0:01:53]} 26. Bxf5 {[%clk 0:02:16]}  g6 {[%clk 0:01:50]} 27. Bg4 {[%clk 0:02:10]}  Nf6 {[%clk 0:01:46]} 28. Bf3 {[%clk 0:02:09]}  Rd7 {[%clk 0:01:45]} 29. b4 {[%clk 0:02:07]}  cxb4 {[%clk 0:01:41]} 30. cxb4 {[%clk 0:02:08]}  Kf8 {[%clk 0:01:41]} 31. b5 {[%clk 0:02:05]}  Ke7 {[%clk 0:01:41]} 32. a4 {[%clk 0:02:05]}  Kd6 {[%clk 0:01:42]} 33. Rc1 {[%clk 0:02:02]}  Rc7 {[%clk 0:01:33]} 34. Rb1 {[%clk 0:01:58]}  Nd7 {[%clk 0:01:18]} 35. a5 {[%clk 0:01:53]}  Kc5 {[%clk 0:01:05]} 36. Rc1+ {[%clk 0:01:49]}  Kd6 {[%clk 0:01:06]} 37. Rxc7 {[%clk 0:01:49]}  Kxc7 {[%clk 0:01:07]} 38. Bxd5 {[%clk 0:01:49]}  f6 {[%clk 0:01:06]} 39. f4 {[%clk 0:01:41]}  Kd6 {[%clk 0:01:06]} 40. Bc6 {[%clk 0:01:39]}  Nc5 {[%clk 0:00:58]} 41. Be8 {[%clk 0:01:38]}  Nb3 {[%clk 0:00:57]} 42. b6 {[%clk 0:01:32]}  axb6 {[%clk 0:00:56]} 43. axb6 {[%clk 0:01:33]}  g5 {[%clk 0:00:49]} 44. fxg5 {[%clk 0:01:32]}  fxg5 {[%clk 0:00:50]} 45. Kf2 {[%clk 0:01:28]}  Nc5 {[%clk 0:00:47]} 46. Kf3 {[%clk 0:01:27]}  Nb7 {[%clk 0:00:42]} 47. Kg4 {[%clk 0:01:25]}  Kc5 {[%clk 0:00:42]} 48. Kh5 {[%clk 0:01:22]}  Kxb6 {[%clk 0:00:43]} 49. Kxh6 {[%clk 0:01:21]}  Kc7 {[%clk 0:00:44]} 50. Kxg5 {[%clk 0:01:21]}  Kd8 {[%clk 0:00:45]} 51. Bf7 {[%clk 0:01:18]}  Nd6 {[%clk 0:00:44]} 52. Kg6 {[%clk 0:01:16]}  Ke7 {[%clk 0:00:44]} 53. Bg8 {[%clk 0:01:15]}  Kf8 {[%clk 0:00:44]} 54. Bd5 {[%clk 0:01:15]}  Nc8 {[%clk 0:00:41]} 55. Ba2 {[%clk 0:01:10]}  Ne7+ {[%clk 0:00:37]} 56. Kf6 {[%clk 0:01:10]}  Nc6 {[%clk 0:00:37]} 57. g4 {[%clk 0:01:10]}  Nb4 {[%clk 0:00:38]} 58. Bc4 {[%clk 0:01:08]}  Nc6 {[%clk 0:00:35]} 59. g5 {[%clk 0:01:08]}  Nd4 {[%clk 0:00:33]} 60. g6 {[%clk 0:01:08]} 1-0

[Event "December 12 Late 2023"]
[Site "https://www.chess.com"]
[Date "2023.12.12"]
[Round "6"]
[White "Tikhonov, Viacheslav"]
[Black "Storn, Justin"]
[Result "1-0"]
[Board "92"]
[TimeControl "180+1"]
[WhiteFideId "44196407"]
[BlackFideId "30922720"]
[WhiteElo "2510"]
[BlackElo "2366"]
[WhiteTeam "RUS"]
[BlackTeam "USA"]
[WhiteClock "0:00:13"]
[BlackClock "0:00:12"]

1. e4 {[%clk 0:03:00]}  c6 {[%clk 0:02:55]} 2. d4 {[%clk 0:03:00]}  d5 {[%clk 0:02:56]} 3. Nc3 {[%clk 0:03:01]}  dxe4 {[%clk 0:02:56]} 4. Nxe4 {[%clk 0:03:02]}  Nf6 {[%clk 0:02:57]} 5. Nxf6+ {[%clk 0:03:03]}  exf6 {[%clk 0:02:58]} 6. Bc4 {[%clk 0:03:03]}  Bd6 {[%clk 0:02:58]} 7. Qe2+ {[%clk 0:03:04]}  Qe7 {[%clk 0:02:58]} 8. Qxe7+ {[%clk 0:03:05]}  Kxe7 {[%clk 0:02:59]} 9. Ne2 {[%clk 0:03:06]}  Re8 {[%clk 0:02:58]} 10. Bd2 {[%clk 0:03:05]}  Kf8 {[%clk 0:02:58]} 11. Bd3 {[%clk 0:03:01]}  Kg8 {[%clk 0:02:53]} 12. O-O-O {[%clk 0:03:01]}  Be6 {[%clk 0:02:53]} 13. Kb1 {[%clk 0:03:00]}  Bd5 {[%clk 0:02:51]} 14. f3 {[%clk 0:02:55]}  c5 {[%clk 0:02:31]} 15. Nc3 {[%clk 0:02:36]}  Bc6 {[%clk 0:02:30]} 16. d5 {[%clk 0:02:34]}  Bd7 {[%clk 0:02:30]} 17. Ne4 {[%clk 0:02:34]}  Bf8 {[%clk 0:02:30]} 18. Rhe1 {[%clk 0:02:28]}  b5 {[%clk 0:02:25]} 19. Bf4 {[%clk 0:02:09]}  c4 {[%clk 0:02:17]} 20. Bf1 {[%clk 0:02:07]}  Na6 {[%clk 0:02:14]} 21. b3 {[%clk 0:01:40]}  cxb3 {[%clk 0:02:09]} 22. axb3 {[%clk 0:01:38]}  Rac8 {[%clk 0:01:52]} 23. Nd6 {[%clk 0:01:27]}  Rxe1 {[%clk 0:01:48]} 24. Rxe1 {[%clk 0:01:25]}  Bxd6 {[%clk 0:01:30]} 25. Bxd6 {[%clk 0:01:26]}  g6 {[%clk 0:01:04]} 26. Kb2 {[%clk 0:00:55]}  Nc5 {[%clk 0:00:48]} 27. Ra1 {[%clk 0:00:42]}  a6 {[%clk 0:00:20]} 28. Bxc5 {[%clk 0:00:21]}  Rxc5 {[%clk 0:00:21]} 29. Rxa6 {[%clk 0:00:22]}  Rxd5 {[%clk 0:00:21]} 30. Rxf6 {[%clk 0:00:22]}  Rd1 {[%clk 0:00:19]} 31. Bd3 {[%clk 0:00:21]}  Rd2 {[%clk 0:00:19]} 32. Rd6 {[%clk 0:00:16]}  Be6 {[%clk 0:00:18]} 33. Rb6 {[%clk 0:00:14]}  Rxg2 {[%clk 0:00:17]} 34. Rxb5 {[%clk 0:00:14]}  Rxh2 {[%clk 0:00:18]} 35. Rb8+ {[%clk 0:00:14]}  Kg7 {[%clk 0:00:18]} 36. b4 {[%clk 0:00:15]}  Bd5 {[%clk 0:00:15]} 37. Be4 {[%clk 0:00:12]}  Bxe4 {[%clk 0:00:16]} 38. fxe4 {[%clk 0:00:13]}  g5 {[%clk 0:00:14]} 39. b5 {[%clk 0:00:13]}  g4 {[%clk 0:00:14]} 40. b6 {[%clk 0:00:13]}  g3 {[%clk 0:00:12]} 41. b7 {[%clk 0:00:13]}  Rh6 {[%clk 0:00:12]} 42. Rg8+ {[%clk 0:00:12]}  Kxg8 {[%clk 0:00:13]} 43. b8=Q+ {[%clk 0:00:12]}  Kg7 {[%clk 0:00:12]} 44. Qxg3+ {[%clk 0:00:13]} 1-0

[Event "December 12 Late 2023"]
[Site "https://www.chess.com"]
[Date "2023.12.12"]
[Round "6"]
[White "Gerbelli Neto, Eduardo"]
[Black "Senft, Sean"]
[Result "1-0"]
[Board "94"]
[TimeControl "180+1"]
[WhiteFideId "2103281"]
[BlackFideId "2044960"]
[WhiteElo "2340"]
[BlackElo "2505"]
[WhiteTeam "BRA"]
[BlackTeam "USA"]
[WhiteClock "0:00:05"]
[BlackClock "0:00:05"]

1. e4 {[%clk 0:03:00]}  c5 {[%clk 0:02:57]} 2. Nc3 {[%clk 0:03:00]}  d6 {[%clk 0:02:57]} 3. f4 {[%clk 0:03:01]}  Nf6 {[%clk 0:02:57]} 4. Nf3 {[%clk 0:03:02]}  Nc6 {[%clk 0:02:57]} 5. Bb5 {[%clk 0:02:58]}  Bg4 {[%clk 0:02:55]} 6. h3 {[%clk 0:02:56]}  Bxf3 {[%clk 0:02:53]} 7. Qxf3 {[%clk 0:02:57]}  Rc8 {[%clk 0:02:48]} 8. e5 {[%clk 0:02:47]}  Nd7 {[%clk 0:02:45]} 9. exd6 {[%clk 0:02:24]}  Nd4 {[%clk 0:02:37]} 10. Qxb7 {[%clk 0:02:02]}  exd6 {[%clk 0:01:56]} 11. O-O {[%clk 0:01:48]}  Be7 {[%clk 0:01:51]} 12. Re1 {[%clk 0:00:43]}  Nxc2 {[%clk 0:01:05]} 13. Rxe7+ {[%clk 0:00:42]}  Kxe7 {[%clk 0:01:00]} 14. Qe4+ {[%clk 0:00:42]}  Kf8 {[%clk 0:00:53]} 15. Qxc2 {[%clk 0:00:43]}  Nf6 {[%clk 0:00:46]} 16. d3 {[%clk 0:00:41]}  d5 {[%clk 0:00:41]} 17. Bd2 {[%clk 0:00:31]}  h6 {[%clk 0:00:31]} 18. Be1 {[%clk 0:00:29]}  Kg8 {[%clk 0:00:31]} 19. Bh4 {[%clk 0:00:26]}  Qd6 {[%clk 0:00:28]} 20. Qf2 {[%clk 0:00:24]}  d4 {[%clk 0:00:27]} 21. Ne4 {[%clk 0:00:22]}  Nxe4 {[%clk 0:00:27]} 22. dxe4 {[%clk 0:00:23]}  Kh7 {[%clk 0:00:27]} 23. e5 {[%clk 0:00:22]}  Qg6 {[%clk 0:00:25]} 24. f5 {[%clk 0:00:21]}  Qb6 {[%clk 0:00:22]} 25. Bd3 {[%clk 0:00:21]}  Rhe8 {[%clk 0:00:19]} 26. f6+ {[%clk 0:00:21]}  g6 {[%clk 0:00:20]} 27. Re1 {[%clk 0:00:20]}  c4 {[%clk 0:00:18]} 28. Be4 {[%clk 0:00:18]}  d3 {[%clk 0:00:18]} 29. Bd5 {[%clk 0:00:15]}  Kg8 {[%clk 0:00:16]} 30. e6 {[%clk 0:00:14]}  Qxf2+ {[%clk 0:00:15]} 31. Bxf2 {[%clk 0:00:15]}  fxe6 {[%clk 0:00:16]} 32. Bxe6+ {[%clk 0:00:14]}  Kf8 {[%clk 0:00:16]} 33. Bxc8 {[%clk 0:00:14]}  Rxc8 {[%clk 0:00:16]} 34. Bd4 {[%clk 0:00:12]}  Rd8 {[%clk 0:00:16]} 35. Bc3 {[%clk 0:00:12]}  Kf7 {[%clk 0:00:16]} 36. Kf2 {[%clk 0:00:12]}  Rd5 {[%clk 0:00:15]} 37. Re7+ {[%clk 0:00:12]}  Kf8 {[%clk 0:00:15]} 38. Ke3 {[%clk 0:00:12]}  a6 {[%clk 0:00:12]} 39. Rg7 {[%clk 0:00:11]}  Rg5 {[%clk 0:00:12]} 40. g4 {[%clk 0:00:11]}  h5 {[%clk 0:00:12]} 41. gxh5 {[%clk 0:00:09]}  Rg3+ {[%clk 0:00:13]} 42. Kd4 {[%clk 0:00:08]}  Rxh3 {[%clk 0:00:04]} 43. hxg6 {[%clk 0:00:07]}  Rh4+ {[%clk 0:00:05]} 44. Kc5 {[%clk 0:00:07]}  a5 {[%clk 0:00:05]} 45. Ra7 {[%clk 0:00:06]}  Ke8 {[%clk 0:00:06]} 46. f7+ {[%clk 0:00:05]}  Kd8 {[%clk 0:00:05]} 47. f8=Q# {[%clk 0:00:05]} 1-0

[Event "December 12 Late 2023"]
[Site "https://www.chess.com"]
[Date "2023.12.12"]
[Round "6"]
[White "Krzywda, Andrzej"]
[Black "Rose, Felix"]
[Result "1/2-1/2"]
[Board "95"]
[TimeControl "180+1"]
[WhiteFideId "1114565"]
[BlackFideId "5105722"]
[WhiteElo "2504"]
[BlackElo "2328"]
[WhiteTeam "POL"]
[BlackTeam "MEX"]
[WhiteClock "0:00:25"]
[BlackClock "0:00:14"]

1. e4 {[%clk 0:03:00]}  e5 {[%clk 0:02:56]} 2. Nf3 {[%clk 0:03:01]}  Nc6 {[%clk 0:02:57]} 3. Bb5 {[%clk 0:03:01]}  a6 {[%clk 0:02:57]} 4. Ba4 {[%clk 0:03:02]}  Nf6 {[%clk 0:02:57]} 5. O-O {[%clk 0:03:03]}  b5 {[%clk 0:02:57]} 6. Bb3 {[%clk 0:03:03]}  Bc5 {[%clk 0:02:58]} 7. a4 {[%clk 0:03:03]}  Rb8 {[%clk 0:02:58]} 8. c3 {[%clk 0:03:03]}  d6 {[%clk 0:02:58]} 9. d4 {[%clk 0:03:04]}  Bb6 {[%clk 0:02:59]} 10. a5 {[%clk 0:03:04]}  Ba7 {[%clk 0:02:59]} 11. h3 {[%clk 0:03:05]}  O-O {[%clk 0:02:58]} 12. Be3 {[%clk 0:03:04]}  exd4 {[%clk 0:02:45]} 13. cxd4 {[%clk 0:03:00]}  Nb4 {[%clk 0:02:42]} 14. Nbd2 {[%clk 0:02:53]}  c5 {[%clk 0:02:39]} 15. Bg5 {[%clk 0:02:35]}  h6 {[%clk 0:02:30]} 16. Bh4 {[%clk 0:02:35]}  cxd4 {[%clk 0:02:29]} 17. e5 {[%clk 0:02:21]}  dxe5 {[%clk 0:02:24]} 18. Ne4 {[%clk 0:02:21]}  g5 {[%clk 0:01:26]} 19. Nfxg5 {[%clk 0:02:21]}  Nxe4 {[%clk 0:01:18]} 20. Qh5 {[%clk 0:02:17]}  hxg5 {[%clk 0:01:05]} 21. Qg6+ {[%clk 0:02:15]}  Kh8 {[%clk 0:01:03]} 22. Qh6+ {[%clk 0:02:14]}  Kg8 {[%clk 0:01:02]} 23. Qg6+ {[%clk 0:01:43]}  Kh8 {[%clk 0:01:02]} 24. Qxe4 {[%clk 0:01:30]}  gxh4 {[%clk 0:00:59]} 25. Qxe5+ {[%clk 0:01:31]}  Kg8 {[%clk 0:00:47]} 26. Rfe1 {[%clk 0:01:14]}  Nd3 {[%clk 0:00:38]} 27. Qe4 {[%clk 0:01:14]}  Nxe1 {[%clk 0:00:33]} 28. Qg6+ {[%clk 0:01:14]}  Kh8 {[%clk 0:00:32]} 29. Qh6+ {[%clk 0:01:12]}  Kg8 {[%clk 0:00:32]} 30. Rxe1 {[%clk 0:01:07]}  Be6 {[%clk 0:00:18]} 31. Bxe6 {[%clk 0:01:04]}  fxe6 {[%clk 0:00:19]} 32. Qg6+ {[%clk 0:01:05]}  Kh8 {[%clk 0:00:18]} 33. Re5 {[%clk 0:01:05]}  Rf5 {[%clk 0:00:17]} 34. Qh6+ {[%clk 0:01:05]}  Kg8 {[%clk 0:00:17]} 35. Qxe6+ {[%clk 0:01:05]}  Rf7 {[%clk 0:00:17]} 36. Qg6+ {[%clk 0:00:40]}  Rg7 {[%clk 0:00:17]} 37. Qe6+ {[%clk 0:00:40]}  Rf7 {[%clk 0:00:15]} 38. Qg6+ {[%clk 0:00:26]}  Rg7 {[%clk 0:00:15]} 39. Qe6+ {[%clk 0:00:25]}  Rf7 {[%clk 0:00:14]} 1/2-1/2

[Event "December 12 Late 2023"]
[Site "https://www.chess.com"]
[Date "2023.12.12"]
[Round "6"]
[White "Ramadoss, Ashokkumar"]
[Black "Makaraci, Tunahan"]
[Result "0-1"]
[Board "97"]
[TimeControl "180+1"]
[WhiteFideId "5040990"]
[BlackFideId "6356559"]
[WhiteElo "2327"]
[BlackElo "2500"]
[WhiteTeam "IND"]
[BlackTeam "TUR"]
[WhiteClock "0:00:00"]
[BlackClock "0:00:51"]

1. Nf3 {[%clk 0:02:45]}  Nf6 {[%clk 0:02:58]} 2. c4 {[%clk 0:02:45]}  e6 {[%clk 0:02:58]} 3. d4 {[%clk 0:02:44]}  Bb4+ {[%clk 0:02:56]} 4. Nbd2 {[%clk 0:02:43]}  a5 {[%clk 0:02:50]} 5. e3 {[%clk 0:02:42]}  O-O {[%clk 0:02:49]} 6. Bd3 {[%clk 0:02:42]}  d5 {[%clk 0:02:48]} 7. O-O {[%clk 0:02:40]}  b6 {[%clk 0:02:48]} 8. cxd5 {[%clk 0:02:40]}  exd5 {[%clk 0:02:47]} 9. Qc2 {[%clk 0:02:40]}  Bb7 {[%clk 0:02:40]} 10. Ne5 {[%clk 0:02:39]}  Bd6 {[%clk 0:02:37]} 11. Ndf3 {[%clk 0:02:38]}  c5 {[%clk 0:02:32]} 12. b3 {[%clk 0:02:13]}  Nbd7 {[%clk 0:02:28]} 13. Bf5 {[%clk 0:02:10]}  Bc8 {[%clk 0:02:05]} 14. Bb2 {[%clk 0:02:01]}  Re8 {[%clk 0:01:57]} 15. Rad1 {[%clk 0:01:58]}  g6 {[%clk 0:01:40]} 16. Bxd7 {[%clk 0:01:21]}  Bxd7 {[%clk 0:01:37]} 17. Nxd7 {[%clk 0:01:19]}  Nxd7 {[%clk 0:01:30]} 18. dxc5 {[%clk 0:01:19]}  Nxc5 {[%clk 0:01:30]} 19. Qc3 {[%clk 0:01:11]}  f6 {[%clk 0:01:22]} 20. Qxf6 {[%clk 0:01:08]}  Qxf6 {[%clk 0:01:22]} 21. Bxf6 {[%clk 0:01:09]}  Ne4 {[%clk 0:01:22]} 22. Ba1 {[%clk 0:00:59]}  Red8 {[%clk 0:01:17]} 23. Rc1 {[%clk 0:00:47]}  Rac8 {[%clk 0:01:15]} 24. Rfd1 {[%clk 0:00:47]}  Ba3 {[%clk 0:01:12]} 25. Rxc8 {[%clk 0:00:46]}  Rxc8 {[%clk 0:01:12]} 26. Bd4 {[%clk 0:00:35]}  b5 {[%clk 0:01:05]} 27. Ne1 {[%clk 0:00:26]}  Bb4 {[%clk 0:01:04]} 28. Nd3 {[%clk 0:00:24]}  Rc2 {[%clk 0:01:02]} 29. f3 {[%clk 0:00:20]}  Nc3 {[%clk 0:00:56]} 30. Nxb4 {[%clk 0:00:17]}  axb4 {[%clk 0:00:52]} 31. Bxc3 {[%clk 0:00:16]}  bxc3 {[%clk 0:00:52]} 32. Rxd5 {[%clk 0:00:00]}  Rd2 {[%clk 0:00:51]} 0-1

[Event "December 12 Late 2023"]
[Site "https://www.chess.com"]
[Date "2023.12.12"]
[Round "6"]
[White "Gasparyan, David"]
[Black "Bazzano, Sebastian"]
[Result "1-0"]
[Board "99"]
[TimeControl "180+1"]
[WhiteFideId "13311980"]
[BlackFideId "104566"]
[WhiteElo "2493"]
[BlackElo "2311"]
[WhiteTeam "USA"]
[BlackTeam "ARG"]
[WhiteClock "0:01:01"]
[BlackClock "0:00:00"]

1. Nf3 {[%clk 0:02:50]}  Nf6 {[%clk 0:02:59]} 2. g3 {[%clk 0:02:50]}  g6 {[%clk 0:02:58]} 3. Bg2 {[%clk 0:02:51]}  Bg7 {[%clk 0:02:59]} 4. O-O {[%clk 0:02:51]}  O-O {[%clk 0:02:59]} 5. c4 {[%clk 0:02:50]}  c5 {[%clk 0:02:58]} 6. Nc3 {[%clk 0:02:49]}  Nc6 {[%clk 0:02:58]} 7. d4 {[%clk 0:02:48]}  cxd4 {[%clk 0:02:59]} 8. Nxd4 {[%clk 0:02:49]}  Nxd4 {[%clk 0:02:59]} 9. Qxd4 {[%clk 0:02:49]}  d6 {[%clk 0:03:00]} 10. Qd2 {[%clk 0:02:44]}  a6 {[%clk 0:02:58]} 11. Rd1 {[%clk 0:02:39]}  Qc7 {[%clk 0:02:39]} 12. b3 {[%clk 0:02:39]}  Bd7 {[%clk 0:02:34]} 13. Bb2 {[%clk 0:02:37]}  Bc6 {[%clk 0:02:34]} 14. e4 {[%clk 0:02:23]}  Rab8 {[%clk 0:02:19]} 15. Rac1 {[%clk 0:02:22]}  Rfc8 {[%clk 0:01:40]} 16. Nd5 {[%clk 0:02:15]}  Bxd5 {[%clk 0:01:39]} 17. exd5 {[%clk 0:02:11]}  Qd7 {[%clk 0:01:28]} 18. h3 {[%clk 0:01:43]}  b5 {[%clk 0:01:03]} 19. cxb5 {[%clk 0:01:43]}  axb5 {[%clk 0:01:02]} 20. Rc6 {[%clk 0:01:41]}  Rxc6 {[%clk 0:00:47]} 21. dxc6 {[%clk 0:01:41]}  Qc7 {[%clk 0:00:47]} 22. Qe3 {[%clk 0:01:31]}  Nd5 {[%clk 0:00:26]} 23. Qd2 {[%clk 0:01:19]}  Bxb2 {[%clk 0:00:17]} 24. Qxb2 {[%clk 0:01:20]}  Nf6 {[%clk 0:00:16]} 25. Qd4 {[%clk 0:01:18]}  b4 {[%clk 0:00:12]} 26. Rd2 {[%clk 0:01:15]}  Rb6 {[%clk 0:00:07]} 27. Rc2 {[%clk 0:01:08]}  Rb8 {[%clk 0:00:06]} 28. Rc4 {[%clk 0:01:08]}  d5 {[%clk 0:00:00]} 29. Rxb4 {[%clk 0:01:01]} 1-0

[Event "December 12 Late 2023"]
[Site "https://www.chess.com"]
[Date "2023.12.12"]
[Round "6"]
[White "Gonzalez Zharikov, Andrey"]
[Black "Wartiovaara, Oliver"]
[Result "0-1"]
[Board "100"]
[TimeControl "180+1"]
[WhiteFideId "5145287"]
[BlackFideId "513024"]
[WhiteElo "2294"]
[BlackElo "2492"]
[WhiteTeam "MEX"]
[BlackTeam "FIN"]
[WhiteClock "0:01:09"]
[BlackClock "0:01:34"]

1. e4 {[%clk 0:03:00]}  c6 {[%clk 0:03:00]} 2. Nf3 {[%clk 0:02:59]}  d5 {[%clk 0:03:00]} 3. Nc3 {[%clk 0:02:59]}  Bg4 {[%clk 0:02:55]} 4. h3 {[%clk 0:02:58]}  Bxf3 {[%clk 0:02:55]} 5. Qxf3 {[%clk 0:02:59]}  e6 {[%clk 0:02:55]} 6. g3 {[%clk 0:02:55]}  Nd7 {[%clk 0:02:54]} 7. Bg2 {[%clk 0:02:55]}  Ngf6 {[%clk 0:02:54]} 8. O-O {[%clk 0:02:54]}  Bc5 {[%clk 0:02:53]} 9. Rd1 {[%clk 0:02:46]}  d4 {[%clk 0:02:31]} 10. Nb1 {[%clk 0:02:11]}  Ne5 {[%clk 0:02:25]} 11. Qb3 {[%clk 0:02:09]}  d3 {[%clk 0:02:23]} 12. c3 {[%clk 0:01:33]}  h5 {[%clk 0:01:38]} 13. a4 {[%clk 0:01:22]}  h4 {[%clk 0:01:37]} 14. g4 {[%clk 0:01:19]}  Nfxg4 {[%clk 0:01:36]} 15. hxg4 {[%clk 0:01:17]}  h3 {[%clk 0:01:34]} 16. Bh1 {[%clk 0:01:09]} 0-1